Cogmind - Beta 14 @@@ ROGUE MODE // 2024.08.27 @ 11:55:27 Player: Minty Result: Destroyed by B-75 Beast with Heavy Plasma Cannon Performance ------------- Evolutions (4) 2000 Regions Visited (12) 2400 Robots Destroyed (157) 785 Value Destroyed (7122) 7122 Prototype IDs (43) 860 Alien Tech Used (0) 0 Bonus (2789) 2789 TOTAL SCORE: 15956 Bonus ------- High Alert Combat Kills 1263 Follower Combat Kills 806 Entered Garrisons 400 Used RIF Installer 500 Aligned with FarCom 300 Friendly Fire -480 Cogmind --------- Core Integrity 0/850 Matter 298/300 Energy 71/100 System Corruption 5% Temperature Cool (12) Movement Core (50) Location -6/Garrison Parts ------- > --- POWER (1) -------- (None) > --- PROPULSION (4) --- (None) > --- UTILITY (8) ------ Improved Melee Analysis Suite Authchip [R/Combat] Relay Coupler [Swarmer] (35) Relay Coupler [Grunt] (19) Relay Coupler [Sentry] (13) > --- WEAPON (2) ------- Longsword +1 > --- INVENTORY (5) ---- Transmission Jammer Authchip [R/Combat] Authchip [R/Combat] Remote Datajack Plasma Cutter Peak State ------------ > --- POWER ------------ Heavy Deuterium Engine > --- PROPULSION ------- Improved Airjet Improved Airjet Improved Airjet Cooled Aerolev Unit > --- UTILITY ---------- Small Storage Unit Improved Melee Analysis Suite Improved Melee Analysis Suite Hacking Suite Relay Coupler [Swarmer] Relay Coupler [Cutter] Relay Coupler [Specialist] Relay Coupler [Heavy] > --- WEAPON ----------- Remote Datajack Longsword +1 > --- INVENTORY -------- Improved Weapon Shielding Authchip [R/Combat] Authchip [R/Combat] Relay Coupler [Brawler] Relay Coupler [Duelist] Hypervelocity Gauss Rifle Heavy Rocket Launcher Plasma Cutter [Rating: 69] Favorites ----------- Power Cooled Ion Engine Engine Cooled Ion Engine Propulsion Aerolev Unit Treads Light Treads Leg Titanium Leg Hover Unit Aerolev Unit Flight Unit Cooled VTOL Module Utility Small Storage Unit Device Actuator Array Storage Small Storage Unit Processor Improved Melee Analysis Suite Hackware Relay Coupler [Swarmer] Protection Improved Light Armor Plating Weapon Longsword +1 Energy Gun Particle Gun Energy Cannon Advanced Beam Cannon Ballistic Gun Light Assault Rifle Launcher Rocket Launcher Special Weapon Remote Datajack Impact Weapon Great Maul Slashing Weapon Longsword +1 Special Melee Weapon Datajack Build | -11 -10 -10 -9 -9 -9 -8 -8 -8 -8 -8 -6 -6 ------- Run | Yrd Mat Min Mat Min Exi Min Mat Sto Gar Rec Fac Gar Slots Evolved 8 | . . . 2 . . . 2 . . . 4 . Power . | . . . . . . . . . . . . . Propulsion 2 | . . . . . . . 1 . . . 1 . Utility 6 | . . . 2 . . . 1 . . . 3 . Weapon . | . . . . . . . . . . . . . Parts Attached 211 | . 10 1 7 14 2 3 40 49 13 . 33 39 Power 19 | . . . 1 3 . 1 4 4 . . 3 3 Engine 19 | . . . 1 3 . 1 4 4 . . 3 3 Core . | . . . . . . . . . . . . . Reactor . | . . . . . . . . . . . . . Propulsion 49 | . 3 1 1 6 . 1 8 13 3 . 7 6 Treads 9 | . 3 1 1 . . . 3 1 . . . . Leg 8 | . . . . . . . 4 . . . . 4 Wheel . | . . . . . . . . . . . . . Hover 28 | . . . . 4 . 1 . 12 3 . 6 2 Flight 4 | . . . . 2 . . 1 . . . 1 . Utility 65 | . 3 . 2 . . . 13 9 7 . 14 17 Device 18 | . 2 . . . . . 5 4 . . 5 2 Storage 4 | . . . . . . . 3 1 . . . . Processor 8 | . 1 . 2 . . . 1 2 . . 2 . Hackware 27 | . . . . . . . . 1 6 . 6 14 Protection 8 | . . . . . . . 4 1 1 . 1 1 Artifact . | . . . . . . . . . . . . . Weapon 78 | . 4 . 3 5 2 1 15 23 3 . 9 13 Energy Gun 19 | . 4 . 1 2 1 . 1 6 . . 1 3 Energy Cannon 2 | . . . . . . . 1 . . . 1 . Ballistic Gun 5 | . . . 1 . . 1 . . . . 1 2 Ballistic Cannon . | . . . . . . . . . . . . . Launcher 15 | . . . 1 3 . . 4 4 . . . 3 Special Weapon 7 | . . . . . . . . 4 . . 2 1 Impact Weapon 7 | . . . . . . . 3 3 . . 1 . Slashing Weapon 18 | . . . . . 1 . 5 5 1 . 2 4 Piercing Weapon . | . . . . . . . . . . . . . Special Melee Weapon 5 | . . . . . . . 1 1 2 . 1 . Unidentified Prototypes 17 | . . . 2 . . . 4 5 . . 6 . Parts Lost 42 | . . . 1 5 . 1 6 3 . . 4 22 Power 3 | . . . . . . . . . . . 2 1 Propulsion 14 | . . . . 2 . . 2 . . . . 10 Utility 16 | . . . . 1 . 1 2 3 . . 1 8 Weapon 9 | . . . 1 2 . . 2 . . . 1 3 Highest Loss Streak 5 | . . . 1 5 . 1 4 1 . . 3 5 To Critical Strikes 1 | . . . 1 . . . . . . . . . Average Slot Usage (%) 90 | . 98 100 97 93 71 75 86 95 98 100 96 78 Engine 7 | . 14 14 11 5 . 7 7 9 9 9 5 5 Treads 6 | . 21 28 22 10 . . 8 8 . . . . Leg 3 | . 6 . . . . . 13 . . . . 5 Hover 12 | . . . . 11 22 22 1 18 27 27 24 7 Device 8 | . 7 14 11 10 . . 11 12 9 9 5 3 Storage 8 | . 14 14 11 11 11 11 9 9 9 9 6 4 Processor 10 | . 5 . 21 22 22 12 6 9 5 . 12 10 Hackware 10 | . . . . . . . . 1 18 27 25 29 Protection 3 | . . . . . . . 12 9 2 . 1 . Energy Gun 6 | . 21 28 14 21 11 11 . 1 2 . . 2 Impact Weapon 2 | . . . . . . . 6 6 . . . . Slashing Weapon 4 | . . . . . 5 2 6 6 8 9 5 2 Special Melee Weapon 1 | . . . . . . . 1 . 6 9 2 . Peak Build Rating 69 | . 12 12 19 21 22 22 37 42 42 42 69 67 Average Rating 34 | . 10 12 16 18 17 15 28 33 39 42 61 47 On Entrance 24 | 6 6 12 12 19 10 22 14 34 35 42 42 67 Naked Turns . | . . . . . . . . . . . . . Heaviest Build 60 | 13 17 17 20 21 11 12 60 51 23 19 26 26 Greatest Support 60 | 20 40 40 40 40 14 14 60 60 25 25 37 45 Greatest Overweight (x) 4 | . . . . 4 . . 2 2 . . 1 4 Average Overweight (x) . | . . . . . . . . . . . . . Largest Inventory Capacity 15 | . 8 8 8 8 8 8 15 15 8 8 8 8 Average Capacity 9 | . 8 8 8 8 8 8 13 10 8 8 8 7 Most Carried 15 | . 8 8 8 8 8 8 15 15 8 8 8 8 Average Carried 8 | . 7 8 7 7 7 7 11 10 7 8 7 7 Final Capacity 15 | 8 8 8 8 8 8 8 15 8 8 8 8 5 Final Carried 15 | 6 8 8 8 6 8 7 15 8 8 8 8 5 Class Distribution -------------------- 38% | Mutant 26% | Bothacker-Mutant 21% | Gladiator 8% | Commander-Mutant 3% | Commander-Scout Dominant Class ---------------- Mutant | -10/Materials Mutant | -10/Mines Mutant | -9/Materials Mutant | -9/Mines Mutant | -9/Exiles Mutant | -8/Mines Gladiator | -8/Materials Gladiator | -8/Storage Commander-Mutant | -8/Garrison Bothacker-Mutant | -8/Recycling Bothacker-Mutant | -6/Factory Bothacker-Mutant | -6/Garrison Resources | -11 -10 -10 -9 -9 -9 -8 -8 -8 -8 -8 -6 -6 ----------- Run | Yrd Mat Min Mat Min Exi Min Mat Sto Gar Rec Fac Gar Matter Collected 3137 | 200 75 75 153 189 . 61 496 594 196 32 433 633 Remotely 227 | . . . . . . . 227 . . . . . Salvage Created 5639 | . 256 96 286 343 . 82 801 1266 484 298 994 733 Parts 306 | . 21 1 19 35 . 4 42 60 27 17 52 28 Haulers Intercepted 9 | . . . 1 . . . 2 4 . . 2 . Recyclers Shooed 3 | . . . 2 . . . . . . . 1 . Parts Field Recycled . | . . . . . . . . . . . . . Retrieved Matter . | . . . . . . . . . . . . . Parts Self-Destructed . | . . . . . . . . . . . . . Prevented . | . . . . . . . . . . . . . Kills | -11 -10 -10 -9 -9 -9 -8 -8 -8 -8 -8 -6 -6 ------- Run | Yrd Mat Min Mat Min Exi Min Mat Sto Gar Rec Fac Gar Combat Hostiles Destroyed 120 | . 8 2 11 14 . 5 22 20 8 4 11 15 Melee 42 | . . . . . . 1 9 5 8 4 8 7 Guns 36 | . 8 1 9 7 . 4 . . . . 3 4 AOE 38 | . . . 2 6 . . 12 14 . . . 4 Classes Destroyed 17 | . 4 1 1 3 . . 2 1 1 1 2 1 Worker 16 | . . . . 5 . . 2 5 . . 4 . Builder 2 | . . . . . . . . . . . 2 . Hauler 9 | . . . 1 . . . 2 4 . . 2 . Recycler 1 | . . . . . . . . . . 1 . . Mechanic 1 | . . . . . . . . 1 . . . . Operator 3 | . 1 . . . . . . 1 . . 1 . Watcher 5 | . 2 . . . . . 1 2 . . . . Swarmer 32 | . 3 . 7 6 . 5 6 3 . . 2 . Cutter 1 | . . . . . . . . . . . . 1 Grunt 59 | . 5 . 2 6 . . 11 14 4 . 4 13 Duelist 3 | . . . . 1 . . 1 1 . . . . Sentry 14 | . . 2 2 . . . 2 2 1 3 2 . Specialist 1 | . . . . . . . 1 . . . . . Hunter 1 | . . . . . . . 1 . . . . . Programmer 8 | . . . . . . . . . 3 1 3 1 Heavy 1 | . . . . . . . . . . . 1 . Assembled 1 | . . . . 1 . . . . . . . . Best Kill Streak 11 | . 3 2 7 6 . 3 5 11 3 3 5 3 Combat Bots Only 7 | . 3 2 7 4 . 3 5 6 3 2 2 3 Max Kills in Single Turn 3 | . 2 1 1 3 . 1 3 3 1 1 1 2 Gunslinging 1 | . 1 . . 1 . . . . . . . . Exploded 3 | . . . 1 2 . . 3 3 . . . 2 Melee 1 | . . . . . . 1 1 1 1 1 1 1 Uniques/NPCs Destroyed . | . . . . . . . . . . . . . Combat | -11 -10 -10 -9 -9 -9 -8 -8 -8 -8 -8 -6 -6 -------- Run | Yrd Mat Min Mat Min Exi Min Mat Sto Gar Rec Fac Gar Hostile Shots Fired 667 | . 32 24 33 73 . 28 138 65 17 11 84 162 Missed 239 | . 14 11 9 27 . 8 40 26 7 5 40 52 Damage Taken 6512 | . 230 291 230 556 . 157 1436 582 169 93 564 2204 Core 1585 | . 115 33 12 186 . 27 226 34 65 18 46 823 Absorbed by Shields 217 | . . . . . . . 106 . . . . 111 Redirected to Shielding 113 | . . . . . . . . . . . . 113 Ignored by Resistances 54 | . . . . . . . 54 . . . . . Regen/Repaired (Parts) 115 | . 84 . . . . . . . . . 31 . Core Remaining (%) 55 | 100 . 40 . . . 43 . . . 37 . . Volleys Fired 221 | . 20 6 25 25 . 21 22 13 . . 16 73 Largest 2 | . 2 2 2 2 . 2 2 2 . . 1 2 Hottest 138 | . 130 130 121 121 . 76 76 97 . . 33 138 Shots Fired 299 | . 40 12 33 45 . 26 25 19 . . 16 83 Gun 225 | . 40 12 27 39 . 26 13 5 . . 14 49 Cannon . | . . . . . . . . . . . . . Launcher 48 | . . . 6 6 . . 12 14 . . . 10 Special 26 | . . . . . . . . . . . 2 24 Kinetic 46 | . . . . . . 13 12 . . . 14 7 Thermal 179 | . 40 12 27 39 . 13 1 5 . . . 42 Explosive 35 | . . . 6 6 . . 10 3 . . . 10 Electromagnetic 13 | . . . . . . . 2 11 . . . . Robot Hit Streak 17 | . 10 6 14 11 . 12 4 5 . . 5 17 Robot Miss Streak 6 | . 2 2 1 2 . 6 2 1 . . 1 3 Penetration Max 2 | . . . . . . . . . . . 2 . Secondary Targets 5 | . 2 . . 1 . 2 . . . . . . Max Gunslinging Chain 1 | . 1 . . 1 . 1 . . . . . . Shots Hit Robots 379 | . 27 9 29 32 . 14 50 41 16 16 65 80 Core Hits 214 | . 15 3 22 24 . 6 33 45 9 4 28 25 Critical Kills 6 | . . . . . . . 3 . . . 2 1 Critical Parts Destroyed 13 | . . . . . . . 3 3 . . 6 1 Critical Strikes 40 | . 2 1 1 4 . . 7 5 2 . 11 7 Burn 10 | . 2 1 1 4 . . . . . . . 2 Destroy 10 | . . . . . . . . . . . 8 2 Smash 9 | . . . . . . . 6 3 . . . . Sever 11 | . . . . . . . 1 2 2 . 3 3 Melee Attacks 281 | . . . . . . 1 55 60 42 18 66 39 Impact 61 | . . . . . . . 33 28 . . . . Slashing 199 | . . . . . . 1 18 30 41 11 59 39 Piercing . | . . . . . . . . . . . . . Sneak Attacks 58 | . . . . . . . 5 14 4 12 19 4 Combat Hostiles 22 | . . . . . . . . 2 4 10 2 4 Follow-up Attacks 10 | . . . . . . . 5 5 . . . . Damage Inflicted 15848 | . 634 162 659 959 . 249 2370 3374 988 650 3092 2711 Guns 2400 | . 421 162 387 488 . 202 90 40 . . 157 453 Cannons . | . . . . . . . . . . . . . Explosions 4153 | . 213 . 270 419 . . 964 1580 . . . 707 Melee 9224 | . . . . . . 47 1316 1754 988 650 2918 1551 Ramming 71 | . . . 2 52 . . . . . . 17 . Kinetic 291 | . . . . . . 27 74 . . . 157 33 Thermal 2642 | . 634 162 387 488 . 175 72 304 . . . 420 Explosive 2456 | . . . 270 419 . . 823 237 . . . 707 Electromagnetic 1164 | . . . . . . . 85 1079 . . . . Impact 1680 | . . . . . . . 928 752 . . . . Slashing 7544 | . . . . . . 47 388 1002 988 650 2918 1551 Piercing . | . . . . . . . . . . . . . Highest Corruption 5 | . . . . . . . 1 3 3 4 5 5 Average Corruption 2 | . . . . . . . 1 1 3 3 3 5 Corruption Purged . | . . . . . . . . . . . . . Corruption Blocked . | . . . . . . . . . . . . . Effects 78 | . . . . . . . 9 10 14 6 11 28 Message Errors 18 | . . . . . . . 3 2 2 1 1 9 Matter Fused 20 | . . . . . . . 3 1 4 3 5 4 Heat Flow Errors 11 | . . . . . . . 1 3 1 . 1 5 Energy Discharges 7 | . . . . . . . . . 3 1 . 3 Parts Rejected 2 | . . . . . . . . . . . 2 . Data Loss (minor) 10 | . . . . . . . 2 . 2 . 2 4 Data Loss (major) 6 | . . . . . . . . 2 2 1 . 1 Misfires 3 | . . . . . . . . 2 . . . 1 Weapon Failures 1 | . . . . . . . . . . . . 1 Overload Shots . | . . . . . . . . . . . . . Overflow Damage 1214 | . 22 . 1 11 . . 189 426 60 186 189 130 Projectiles . | . . . . . . . . . . . . . Explosions 94 | . 22 . 1 11 . . 15 32 . . . 13 Melee 1120 | . . . . . . . 174 394 60 186 189 117 Knockbacks 8 | . . . . . . . 6 2 . . . . Impact 6 | . . . . . . . 4 2 . . . . Kinetic . | . . . . . . . . . . . . . Secondary 2 | . . . . . . . 2 . . . . . Self-Inflicted Damage 240 | . . . . 81 . . 36 41 . . 8 74 Shots 9 | . . . . 2 . . 1 3 . . . 3 Rammed 13 | . . . 1 11 . . . . . . 1 . Targets Rammed 14 | . . . 1 12 . . . . . . 1 . Kicked . | . . . . . . . . . . . . . Crushed 1 | . . . . 1 . . . . . . . . Highest Temperature 546 | . 546 216 45 30 . 62 258 269 183 . 198 278 Average Temperature 103 | . 192 116 29 9 . 22 53 69 90 . 92 122 Received Heat Transfer 2182 | . 72 63 48 162 . . 628 279 99 9 147 675 Effects 12 | . 9 . . . . . . . . . . 3 Energy Bleed 3 | . 2 . . . . . . . . . . 1 Interference 2 | . . . . . . . . . . . . 2 Matter Decay 1 | . 1 . . . . . . . . . . . Damage (minor) 1 | . 1 . . . . . . . . . . . Damage (major) 4 | . 4 . . . . . . . . . . . Damage (core) 1 | . 1 . . . . . . . . . . . Siege Activations . | . . . . . . . . . . . . . Robots Corrupted 3 | . . . . . . . 1 2 . . . . Combat Hostiles 2 | . . . . . . . 1 1 . . . . Parts Fried 10 | . . . . . . . 4 6 . . . . Impact Corruptions 15 | . . . . . . . 8 7 . . . . Robots Melted 2 | . . 1 . 1 . . . . . . . . Combat Hostiles 2 | . . 1 . 1 . . . . . . . . Parts Melted 18 | . 2 4 2 3 . . . 1 . . 1 5 Heat Transferred 5889 | . 1297 444 999 1406 . 370 137 274 . . . 962 Parts Sabotaged . | . . . . . . . . . . . . . Parts Stolen . | . . . . . . . . . . . . . Parts Stripped . | . . . . . . . . . . . . . Power Chain Reactions 5 | . . . . . . . 1 4 . . . . Alert | -11 -10 -10 -9 -9 -9 -8 -8 -8 -8 -8 -6 -6 ------- Run | Yrd Mat Min Mat Min Exi Min Mat Sto Gar Rec Fac Gar Peak Influence 2145 | . 311 98 453 429 . 155 432 1155 2145 1123 1028 1141 Initial 964 | . . 43 37 176 . . 60 182 750 964 771 459 Average 594 | . 120 70 304 250 . 75 177 545 1546 1026 874 908 Maximum Alert Level 5 | . 1 . 2 2 . . 2 4 5 4 3 4 Low Security (%) 21 | . 69 100 13 19 . 100 58 1 . . . . Level 1 23 | . 30 . 64 79 . . 34 18 . . . . Level 2 14 | . . . 22 1 . . 6 56 . . 7 19 Level 3 32 | . . . . . . . . 21 26 79 92 76 Level 4 4 | . . . . . . . . 2 26 20 . 3 Level 5 4 | . . . . . . . . . 46 . . . High Security . | . . . . . . . . . . . . . Max Security . | . . . . . . . . . . . . . Squads Dispatched 28 | . 3 . 1 . . . 3 6 . . 15 . Investigation 16 | . 2 . 1 . . . 2 3 . . 8 . Extermination 2 | . . . . . . . . . . . 2 . Reinforcement 5 | . 1 . . . . . 1 1 . . 2 . Assault 2 | . . . . . . . . 2 . . . . Garrison 3 | . . . . . . . . . . . 3 . Intercept . | . . . . . . . . . . . . . Searches Triggered . | . . . . . . . . . . . . . Construction Impeded . | . . . . . . . . . . . . . Haulers Reinforced 1 | . . . . . . . . . . . 1 . Active Scanning Responses . | . . . . . . . . . . . . . Cargo Convoy Interrupts 1 | . . . . . . . . . . . 1 . Stealth | -11 -10 -10 -9 -9 -9 -8 -8 -8 -8 -8 -6 -6 --------- Run | Yrd Mat Min Mat Min Exi Min Mat Sto Gar Rec Fac Gar Distress Signals 7 | . 1 . . . . . . 2 . . 4 . Communications Jammed . | . . . . . . . . . . . . . Distress Signals . | . . . . . . . . . . . . . Times Spotted 207 | . 10 4 13 18 . 8 31 40 17 5 25 36 Peak Tracking Total 8 | . 4 2 7 8 . 5 5 7 5 2 4 4 Tactical Retreats 12 | . . . 1 . . 1 1 4 1 . . 4 Traps | -11 -10 -10 -9 -9 -9 -8 -8 -8 -8 -8 -6 -6 ------- Run | Yrd Mat Min Mat Min Exi Min Mat Sto Gar Rec Fac Gar Traps Triggered 13 | . . . . . . . . 2 5 . 1 5 Indirectly . | . . . . . . . . . . . . . Trap Hack Attempts 93 | . . . . . . . . 67 . . 26 . Triggered . | . . . . . . . . . . . . . Disarmed 12 | . 11 . . . . . . . . . 1 . Reprogrammed 13 | . . . 4 . . . . 6 . . 3 . Reused 4 | . . . . . . . . 4 . . . . Traps Extracted . | . . . . . . . . . . . . . Installed . | . . . . . . . . . . . . . Triggered 5 | . . . . . . . . 4 . . 1 . Objects Rigged 1 | . 1 . . . . . . . . . . . Exploded 1 | . 1 . . . . . . . . . . . Machines | -11 -10 -10 -9 -9 -9 -8 -8 -8 -8 -8 -6 -6 ---------- Run | Yrd Mat Min Mat Min Exi Min Mat Sto Gar Rec Fac Gar Machines Disabled 33 | . 2 1 3 . . . 1 11 6 . 2 7 Max in Single Turn 1 | . 1 1 1 . . . 1 1 1 . 1 1 Garrison Relay 11 | . . . . . . . . . 5 . . 6 Machines Repaired . | . . . . . . . . . . . . . Machines Dismantled 2 | . . . . . . . . 2 . . . . Machines Sabotaged . | . . . . . . . . . . . . . Overloaded Fab Kills . | . . . . . . . . . . . . . Hacking | -11 -10 -10 -9 -9 -9 -8 -8 -8 -8 -8 -6 -6 --------- Run | Yrd Mat Min Mat Min Exi Min Mat Sto Gar Rec Fac Gar Machines Accessed 49 | . 5 . 4 . 1 . 5 7 3 6 17 1 Terminals 39 | . 4 . 3 . . . 5 6 3 6 11 1 Fabricators . | . . . . . . . . . . . . . Repair Stations 3 | . 1 . . . . . . . . . 2 . Recycling Units 2 | . . . 1 . . . . . . . 1 . Scanalyzers 1 | . . . . . . . . . . . 1 . Garrison Access 3 | . . . . . . . . 1 . . 2 . Total Hacks 138 | . 18 . 12 . 1 . 19 20 8 20 38 2 Successful 63 | . 10 . 10 . 1 . 10 7 2 3 20 . Failed 75 | . 8 . 2 . . . 9 13 6 17 18 2 Catastrophic 15 | . 1 . . . . . 3 3 1 2 4 1 Database Lockouts . | . . . . . . . . . . . . . Manual 89 | . 17 . 4 . 1 . 17 10 2 22 16 . Terminals 120 | . 17 . 10 . . . 19 18 8 20 26 2 Fabricators . | . . . . . . . . . . . . . Repair Stations 4 | . 1 . . . . . . . . . 3 . Recycling Units 4 | . . . 2 . . . . . . . 2 . Scanalyzers 2 | . . . . . . . . . . . 2 . Garrison Access 7 | . . . . . . . . 2 . . 5 . Terminal Hacks 34 | . 4 . 7 . 1 . 6 5 2 2 7 . Robot Schematic 2 | . . . . . . . . . . 2 . . Robot Analysis 3 | . . . 1 . . . 1 1 . . . . Prototype ID Bank 3 | . . . 2 . . . . 1 . . . . Branch Access Points 2 | . . . 1 . . . 1 . . . . . Emergency Access Points 1 | . . . . . . . . . 1 . . . Terminal Index 1 | . . . . . . . . . . . 1 . Scanalyzer Index 1 | . . . . . . . 1 . . . . . Alert Level 3 | . . . . . . . 2 1 . . . . Unreport Threat 2 | . . . . . . . . . . . 2 . Locate Traps 6 | . 1 . 1 . . . . 1 . . 3 . Disarm Traps 2 | . 2 . . . . . . . . . . . Reprogram Traps 1 | . . . 1 . . . . . . . . . Security Status 1 | . . . . . . . . 1 . . . . Zone Layout 4 | . 1 . 1 . . . 1 . . . 1 . Patrol Navigation 1 | . . . . . . . . . 1 . . . Derelict Proto ID Bank 1 | . . . . . 1 . . . . . . . Fabricator Hacks . | . . . . . . . . . . . . . Repair Station Hacks . | . . . . . . . . . . . . . Recycling Unit Hacks 4 | . . . 2 . . . . . . . 2 . Report Inventory 3 | . . . 1 . . . . . . . 2 . Retrieve Components 1 | . . . 1 . . . . . . . . . Scanalyzer 2 | . . . . . . . . . . . 2 . Insert Component 1 | . . . . . . . . . . . 1 . Analyze 1 | . . . . . . . . . . . 1 . Garrison Access Hacks 2 | . . . . . . . . 1 . . 1 . Unlock Access 2 | . . . . . . . . 1 . . 1 . Unauthorized Hacks 21 | . 6 . 1 . . . 4 1 . 1 8 . Terminals 16 | . 5 . 1 . . . 4 1 . 1 4 . Assimilate 1 | . . . . . . . . . . . 1 . Botnet 12 | . 3 . 1 . . . 3 1 . 1 3 . Detonate 1 | . 1 . . . . . . . . . . . Operators 2 | . 1 . . . . . 1 . . . . . Fabricators . | . . . . . . . . . . . . . Repair Stations 2 | . 1 . . . . . . . . . 1 . Patch 2 | . 1 . . . . . . . . . 1 . Recycling Units . | . . . . . . . . . . . . . Scanalyzers . | . . . . . . . . . . . . . Garrison Access 3 | . . . . . . . . . . . 3 . Broadcast 1 | . . . . . . . . . . . 1 . Restock 1 | . . . . . . . . . . . 1 . Reprogram 1 | . . . . . . . . . . . 1 . Data Cores Recovered 1 | . . . . . . . . . . . 1 . Used 1 | . . . . . . . . . . . 1 . Hacking Detections 46 | . 4 . 4 . . . 5 7 3 6 16 1 Full Trace Events 25 | . 1 . 3 . . . 3 3 3 6 5 1 Feedback Events 3 | . . . . . . . 1 1 . . 1 . Corruption 2 | . . . . . . . 1 . . . 1 . Hackware Fried 1 | . . . . . . . . 1 . . . . Feedback Blocked . | . . . . . . . . . . . . . Robot Schematics Acquired 2 | . . . . . . . . . . 2 . . Robots Built . | . . . . . . . . . . . . . Authchips . | . . . . . . . . . . . . . Time . | . . . . . . . . . . . . . Total Robot Build Rating . | . . . . . . . . . . . . . Part Schematics Acquired 1 | . . . . . . . . . . . 1 . Parts Built . | . . . . . . . . . . . . . Authchips . | . . . . . . . . . . . . . Time . | . . . . . . . . . . . . . Total Part Build Rating . | . . . . . . . . . . . . . Parts Repaired . | . . . . . . . . . . . . . Time . | . . . . . . . . . . . . . Parts Recycled . | . . . . . . . . . . . . . Recycled Matter . | . . . . . . . . . . . . . Retrieved Matter . | . . . . . . . . . . . . . Retrieved Components 2 | . . . 2 . . . . . . . . . Parts Scanalyzed 1 | . . . . . . . . . . . 1 . Part Schematics Acquired 1 | . . . . . . . . . . . 1 . Parts Damaged . | . . . . . . . . . . . . . Bothacking | -11 -10 -10 -9 -9 -9 -8 -8 -8 -8 -8 -6 -6 ------------ Run | Yrd Mat Min Mat Min Exi Min Mat Sto Gar Rec Fac Gar Used RIF Installer 1 | . . . . . . . . . 1 . . . Robots Hacked 27 | . . . . . . . 2 2 . . 9 14 Non-combat 5 | . . . . . . . 2 2 . . 1 . Combat 22 | . . . . . . . . . . . 8 14 Robot Hacks Applied 29 | . . . . . . . 3 2 . . 9 15 parse_system 3 | . . . . . . . 2 . . . . 1 no_distress 3 | . . . . . . . 1 2 . . . . find_chute 1 | . . . . . . . . . . . 1 . spike_heat 1 | . . . . . . . . . . . 1 . amplify_resonance 4 | . . . . . . . . . . . . 4 reboot_system 3 | . . . . . . . . . . . 1 2 overwrite_iff 4 | . . . . . . . . . . . 2 2 streamctrl_high 1 | . . . . . . . . . . . 1 . formatsys_high 9 | . . . . . . . . . . . 3 6 Relay Couplers Released 48 | . . . . . . . . . 20 . 4 24 Machine Destruction 44 | . . . . . . . . . 20 . . 24 Programmers 4 | . . . . . . . . . . . 4 . Attached 18 | . . . . . . . . . 3 . 4 11 Fabnet Peak Effective % . | . . . . . . . . . . . . . Robots Rewired 4 | . . . . . . . . . . 4 . . Allies Hacked 1 | . . . . . . . . . . 1 . . Hacks Repelled . | . . . . . . . . . . . . . Allies | -11 -10 -10 -9 -9 -9 -8 -8 -8 -8 -8 -6 -6 -------- Run | Yrd Mat Min Mat Min Exi Min Mat Sto Gar Rec Fac Gar Total Allies 34 | . . . . . . . . 12 2 4 8 8 Largest Group 13 | . . . . . . . . 12 11 13 13 4 Highest-Rated Group 282 | . . . . . . . . 235 208 257 282 106 Highest-Rated Ally 90 | . . . . . . . . 31 31 31 90 32 Total Orders . | . . . . . . . . . . . . . Ally Attacks 219 | . . . . . . . . 39 95 3 51 31 Total Damage 3688 | . . . . . . . . 533 1306 94 1052 703 Kills 43 | . . . . . . . . 7 22 2 9 3 Allies Corrupted 1 | . . . . . . . . . . . . 1 Allies Melted . | . . . . . . . . . . . . . Intel | -11 -10 -10 -9 -9 -9 -8 -8 -8 -8 -8 -6 -6 ------- Run | Yrd Mat Min Mat Min Exi Min Mat Sto Gar Rec Fac Gar Robot Analysis Total 3 | . . . 1 . . . 1 1 . . . . Derelict Logs Recovered 2 | . . 1 . 1 . . . . . . . . Drone Launches . | . . . . . . . . . . . . . Drone Recoveries . | . . . . . . . . . . . . . Exploration | -11 -10 -10 -9 -9 -9 -8 -8 -8 -8 -8 -6 -6 ------------- Run | Yrd Mat Min Mat Min Exi Min Mat Sto Gar Rec Fac Gar Turns Passed 8013 | . 439 116 342 986 130 170 1462 1128 691 301 1000 1248 Spaces Moved 6722 | 1 235 61 166 474 222 199 779 713 910 469 1610 883 Core 148 | . . . . . . . 134 . . . . 14 Treads 958 | . 156 61 166 261 . . 200 114 . . . . Legs 835 | 1 79 . . . . . 328 . . . . 427 Wheels . | . . . . . . . . . . . . . Hover 4778 | . . . . 210 222 199 117 599 910 469 1610 442 Flight 3 | . . . . 3 . . . . . . . . Fastest Speed 38 | 120 120 160 160 56 56 56 56 42 42 42 38 38 Average Speed 75 | 120 146 160 160 115 56 56 146 66 42 42 39 89 Slowest Speed 355 | 120 160 160 160 355 56 56 330 176 42 42 110 250 Overloaded Moves 22 | . . . . . . . . . . . . 22 Propulsion Burnouts . | . . . . . . . . . . . . . Robots Hopped . | . . . . . . . . . . . . . Cave-ins Triggered . | . . . . . . . . . . . . . Exploration Rate (%) 54 | 2 31 24 19 93 61 55 44 75 96 94 47 70 Regions Visited 12 Branch Regions 6 Pre-discovered Areas 2 | . . 1 . 1 . . . . . . . . Known Exits Taken 5 | . . . 1 . . 1 1 1 . . 1 . Unknown Exits Taken 6 | 1 1 1 . 1 1 . . . . 1 . . Scrap Searched 2 | . . . . 1 . 1 . . . . . . Spaces Dug 28 | . . . . . . . 7 8 2 . 10 1 Terrain Destroyed 323 | . 34 . 27 49 . . 94 35 2 . 10 72 Melee 28 | . . . . . . . 7 8 2 . 10 1 Projectile . | . . . . . . . . . . . . . AOE 295 | . 34 . 27 49 . . 87 27 . . . 71 Terrain Rammed . | . . . . . . . . . . . . . Walls Destroyed . | . . . . . . . . . . . . . Machines Disabled . | . . . . . . . . . . . . . Actions | -11 -10 -10 -9 -9 -9 -8 -8 -8 -8 -8 -6 -6 --------- Run | Yrd Mat Min Mat Min Exi Min Mat Sto Gar Rec Fac Gar Total 8978 | . 295 68 210 861 226 232 991 1235 1185 557 1894 1224 Wait 1176 | . 8 . 3 330 . 6 72 291 123 70 125 148 Move 6711 | . 234 60 165 473 221 198 778 713 909 468 1609 883 Hop . | . . . . . . . . . . . . . Pick Up 69 | . 10 . 4 1 3 . 16 9 15 . 3 8 Fast Attach 75 | . 2 . 2 3 1 2 13 14 5 . 17 16 Attach 30 | . 2 . 2 2 1 . 7 3 3 . 2 8 Detach 26 | . 1 . 1 1 . 1 7 2 5 . 2 6 Swap 106 | . 6 1 3 9 . 1 20 32 5 . 14 15 Drop 92 | . 12 1 4 5 . 2 11 27 14 . 10 6 Fire 221 | . 20 6 25 25 . 21 22 13 . . 16 73 Melee 259 | . . . . . . 1 45 48 42 18 66 39 Ram 12 | . . . . 11 . . . . . . 1 . Kick . | . . . . . . . . . . . . . Crush 2 | . . . 1 1 . . . . . . . . Escape Stasis 82 | . . . . . . . . . 64 . . 18 Rewire 8 | . . . . . . . . . . 1 3 4 Trap 93 | . . . . . . . . 67 . . 26 . Miscellaneous 16 | . . . . . . . . 16 . . . . Route ------- -11/Scrapyard -10/Materials -10/Mines -9/Materials (discovered 2 exits: *Min x2) -9/Mines (discovered 4 exits: *Mat x2 / *Exi / [*Zio]) -9/Exiles (discovered 2 exits: [*Min x2]) -8/Mines -8/Materials -8/Storage (discovered 2 exits: [*Fac] / Gar) -8/Garrison (discovered 3 exits: *Rec x3) -8/Recycling (discovered 2 exits: *Fac / [*Scr]) -6/Factory (discovered 4 exits: [*Fac] / [*Low] / [*Ext] / Gar) -6/Garrison (discovered 3 exits: [*Fac x3]) History --------- Turn | Location | Event 1 | -11/Scrapyard | Discovered new exit (range 0) 1 | -11/Scrapyard | Entered Materials 83 | -10/Materials | Discovered new exit (range 10) 323 | -10/Materials | Build established: Mutant 440 | -10/Materials | Entered Mines 447 | -10/Mines | Learned location of Zion (-7) 456 | -10/Mines | Met a Derelict bent on vengeance 498 | -10/Mines | Core integrity fell below 50% 509 | -10/Mines | Assembled infested the area 514 | -10/Mines | Assisted by a Guerilla fighting off Assembled 550 | -10/Mines | Discovered new exit (range 5) 556 | -10/Mines | Entered Materials 556 | -9/Materials | Evolved 2 slots: Utility x2 623 | -9/Materials | Destroyed 7 combat bots 762 | -9/Materials | Identified exit to Mines 898 | -9/Materials | Entered Mines 951 | -9/Mines | Identified exit to Materials 1250 | -9/Mines | Discovered exit to Materials (range 8) 1358 | -9/Mines | Found DCF Scrap (14 items) 1441 | -9/Mines | A Derelict revealed a hidden shortcut to a safe place 1498 | -9/Mines | Excavation squad dispatched 1498 | -9/Mines | A large section of the Mines collapsed 1748 | -9/Mines | Excavation squad dispatched 1875 | -9/Mines | Learned location of Storage (-8) 1882 | -9/Mines | Deemed a non-threat by the Exiles lab entrance 1882 | -9/Mines | Discovered new exit (range 5) 1884 | -9/Mines | Entered Exiles 1893 | -9/Exiles | Discovered new exit (range 15) 1894 | -9/Exiles | Lost 5 parts (2n1u2w) 1905 | -9/Exiles | Met 8R-AWN 1914 | -9/Exiles | Met EX-HEX 1932 | -9/Exiles | Met EX-BIN 1938 | -9/Exiles | Aligned with FarCom system 1938 | -9/Exiles | Given EX-Vault access code 1952 | -9/Exiles | Opened EX-Vault 1955 | -9/Exiles | Found Longsword +1 1968 | -9/Exiles | Warned to stay clear of 0b10 Research branches 1977 | -9/Exiles | Exiles lab attacked by MAIN.C 2005 | -9/Exiles | Discovered new exit (range 14) 2014 | -9/Exiles | Left Exiles lab with Longsword +1 2014 | -9/Exiles | Entered Mines 2049 | -8/Mines | Core integrity fell below 50% 2181 | -8/Mines | Discovered exit to Materials (range 6) 2184 | -8/Mines | Entered Materials 2184 | -8/Materials | Evolved 2 slots: Propulsion x1, Utility x1 2334 | -8/Materials | Lost 4 parts (2n2w) 2416 | -8/Materials | Identified exit to Storage 2886 | -8/Materials | Build established: Gladiator 3646 | -8/Materials | Entered Storage 4459 | -8/Storage | Met a pair of Derelict thieves 4463 | -8/Storage | Discovered new exit (range 9) 4608 | -8/Storage | Hacking Suite fried by hacking feedback 4612 | -8/Storage | Assisted by bots powering up and referring to "LRC-V3" 4760 | -8/Storage | Identified exit to Garrison 4774 | -8/Storage | Entered Garrison 4774 | -8/Garrison | Accompanied by 11 allies 4811 | -8/Garrison | Garrison Relay disabled 4878 | -8/Garrison | Triggered checkpoint 4936 | -8/Garrison | Triggered checkpoint 4957 | -8/Garrison | Build established: Commander-Scout 4958 | -8/Garrison | Garrison Relay disabled 5004 | -8/Garrison | Discovered new exit (range 10) 5028 | -8/Garrison | Triggered checkpoint 5077 | -8/Garrison | Discovered new exit (range 10) 5084 | -8/Garrison | Triggered checkpoint 5084 | -8/Garrison | Triggered checkpoint 5089 | -8/Garrison | Garrison Relay disabled 5096 | -8/Garrison | Triggered checkpoint 5097 | -8/Garrison | Core integrity fell below 50% 5149 | -8/Garrison | Rescued a captive Derelict 5151 | -8/Garrison | Rescued a captive Derelict 5166 | -8/Garrison | Discovered new exit (range 10) 5194 | -8/Garrison | Triggered checkpoint 5200 | -8/Garrison | Garrison Relay disabled 5207 | -8/Garrison | Garrison Relay disabled 5262 | -8/Garrison | Build established: Commander-Mutant 5291 | -8/Garrison | Installed Relay Interface Framework 5465 | -8/Garrison | Entered Recycling 5465 | -8/Recycling | Accompanied by 10 allies 5488 | -8/Recycling | Scanned before Scraplab entrance 5524 | -8/Recycling | Entered Scraplab 5527 | -8/Recycling | Discovered new exit (range 2) 5603 | -8/Recycling | Build established: Bothacker-Mutant 5716 | -8/Recycling | Discovered new exit (range 16) 5766 | -8/Recycling | Entered Factory 5766 | -6/Factory | Accompanied by 13 allies 5766 | -6/Factory | Evolved 4 slots: Propulsion x1, Utility x3 5793 | -6/Factory | Identified exit to Garrison 5939 | -6/Factory | Discovered new exit (range 4) 6005 | -6/Factory | Lost 5 allies 6052 | -6/Factory | Garrison activated, responded to threat 6152 | -6/Factory | Discovered new exit (range 11) 6174 | -6/Factory | Lost 3 parts (2p1w) 6298 | -6/Factory | Cargo convoy interrupted 6629 | -6/Factory | Discovered new exit (range 11) 6766 | -6/Factory | Entered Garrison 6766 | -6/Garrison | Accompanied by 1 ally 6771 | -6/Garrison | Triggered checkpoint 6810 | -6/Garrison | Triggered checkpoint 6825 | -6/Garrison | Garrison Relay disabled 6965 | -6/Garrison | Garrison Relay disabled 6985 | -6/Garrison | Garrison Relay disabled 7023 | -6/Garrison | Garrison Relay disabled 7039 | -6/Garrison | Garrison Relay disabled 7151 | -6/Garrison | Lost 3 allies 7174 | -6/Garrison | Spotted B-75 Beast 7219 | -6/Garrison | Discovered new exit (range 10) 7242 | -6/Garrison | Lost 4 parts (1p2n1u) 7309 | -6/Garrison | Core integrity fell below 50% 7320 | -6/Garrison | Triggered checkpoint 7410 | -6/Garrison | Garrison Relay disabled 7506 | -6/Garrison | Triggered checkpoint 7633 | -6/Garrison | Lost 4 parts (2n1u1w) 7652 | -6/Garrison | Discovered new exit (range 10) 7718 | -6/Garrison | Triggered checkpoint 7795 | -6/Garrison | Lost 5 parts (1n3u1w) 7817 | -6/Garrison | Discovered new exit (range 5) 7972 | -6/Garrison | Triggered checkpoint 7998 | -6/Garrison | Core integrity fell below 20% 8014 | -6/Garrison | Destroyed by B-75 Beast with Heavy Plasma Cannon Last Messages --------------- 07980_ G-67 Veteran Unknown Reactor critical resonance detonation. 07980_ G-50 Soldier Lgt. Angular Momentum Engine critical resonance detonation. 07980_ G-50 Soldier destroyed. 07980_ G-67 Veteran destroyed. 07980_ Carbon-fiber Leg destroyed. 07980_ G-50 Soldier destroyed. 07986_ Guardian 5d destroyed. 07986_ Dropped Hvy. Rocket Launcher. 07986_ Dropped Lgt. Angular Momentum Engine. 07988_ System corrupted: Matter fused (-6). 07989_ The unstable cave ceiling collapses. 07989_ Acquired 52 matter. 07991_ Knocked back. 08001_ B-75 Beast Hvy. Machine Gun severed. 08005_ The unstable cave ceiling collapses. 08006_ Relay Coupler [Hunter] destroyed. 08006_ Knocked back. 08012_ Destroyed Med. Reflective Plating. 08013_ The unstable cave ceiling collapses. Map ----- +----------------------------------------------------+ | ???????????????????????????????#"! !"#??????? | | ???????????????????????????????#"" ""######?? | | ???????????????????????????????##### ###### #?? | | ???????????????????????????????????# ###### < ### | | ???????????????????????????????????# | | ???????????????????????????????????# % | | ???????????????????????????????????# ############ | | ???????????????????????????????????# #??????????? | | ???????????????????????????????????# #??????????? | | ???????????????????????????????????# #??????????? | | ???????????????????????????????????# #??????????? | | ???????????????????????????????????# #??????????? | | ???????????????????????????????????# #??????????? | | ???????????????????????????????????# #??????????? | | ???????????????????????????????????# #??????????? | | ???????????????????????????????????# #??????????? | | ????????????????????????############ #??????????? | | ????????????????????????# % #??????????? | | ????????????????????????# ! #??????????? | | ????????????????????????# %#########^ #??????????? | | ????????????????????????# #???#???# #??????????? | | ??????????????????????###* ### ##### ######### ## | | ??????????????????????# ] # | | ??????????????????????##% ## #?# ############ | | ???????????????????????## #????# #??????????? | | ????????????####### # @ = #????# #??????????? | | ??????????? BB ###### #??????????? | | ??????????? BB% #??????????? | | ??????????? ^ #??????????? | | ???????????### ## # ##########??????????? | | ???????????### ## ## ###??????????????????? | | ???????????# #??????????????????? | | ???????????# #??????????????????? | | ##?????????# ###????????????????? | | =#?????????? "%#????????????????? | | !#???????????#%% ## ## ### #????????????????? | | #?###########% ! # #?# #????????????????? | | ### ==! % #?#%#????????????????? | | + % *% * !=% =% #?# #???????????????## | | ### ######## = % ### #??????????????## | | #?# [#??????######%= ## """ ################ | | #?#!!#???????# #?# % ## + | | #?#= #???????# #?####### %## ########### ## | | ##?#%!######### #???????# ##???# #### | | ???#/ [ *= #???????# # % # # ##??# #??? | | ???# ## ########???????# # # # #??# #??? | | ???# ## #??????????????# ## # ########### | | ???# ## #??????????????# *%!!%[ % % | | #### ## #??????????????# ! =*! | | | " ## #??????????????# % ^ | +----------------------------------------------------+ Best States ------------- Heat Dissipation 56 Energy Generation 23 Energy Capacity 310 Matter Stores 300 Matter Capacity 300 Sight Range 18 Robot Scan Range 14 Terrain Scan Density 10 ECM Strength 1 Jamming Range 12 Additional Mass Support 9 Armor Coverage 300 Resistance: KI 20 Weapon Shielding 66 Evasion (%) 57 Targeting Accuracy 12 Melee Accuracy 12 Recoil Reduction 3 Offensive Hacking 20 Relay Coupler Types 4 Relay Coupler Value 132 Authchip Count 4 Item Schematics ----------------- Hyp. Gauss Rifle | -6/Factory | Scanalyzed Robot Schematics ------------------ H-55 Commando | -8/Recycling | Hacked D-53 Grenadier | -8/Recycling | Hacked Fabricated ------------ Nothing Alien Tech Used ----------------- None Achievements -------------- None Challenges ------------ None Game ------ Seed HackingKineticLog Manual? 0 Play Time 01:09:06 Cumulative 893.2 hours Start 2024.08.27 @ 10:38:10 End 2024.08.27 @ 11:55:27 Sessions 1 Manual Loads 0 Difficulty Rogue Special Mode None Game No. 1085 Rogue 806 Adventurer 124 Explorer 155 Win Type - Total 38 Types 28/0/8/1/0/0/0/1/0 Lore% 78 Gallery% 89 Achievement% 78 Wizard Run 0 Options --------- Layout 0 ASCII 0 Keyboard 1 Movement Numpad Keybinds 0 Fullscreen 2 Font 18/X11 Map View 76x50 Zoom Use 0% Tactical HUD 1 Map Filters NONE Filters NONE Steam 1 RUN: 6ccfd9ef-05f4-4aab-ace1-c135d0684bdb